{"text_format":"1","workbook":"xlsx","n_sheets":6,"sheets":["FY11-FY15","2016","2017","2018","2019","2020"],"not_rendered":{"charts":0,"images":0,"macros":1,"external_links":0,"defined_names":19,"comments":0,"pivot_tables":0},"unopened":[],"bounds":{"document_bytes":16777216,"sheet_cells":100000,"rows_first":2000,"rows_last":500,"rows_between":2000,"halvings":0,"cell_chars":16384,"cell_head_chars":4096},"cells_cut":0,"cells_raw":0,"read":"whole","date_system":"1900"}

{"sheet":"FY11-FY15","index":0,"n_rows":57,"n_cols":40,"rows_kept":57,"cut":false,"hidden":false,"merged":[[48,12,48,38],[0,1,0,38],[1,8,1,10],[1,12,1,38],[2,1,2,11],[2,12,2,23],[2,24,2,26],[2,27,2,37],[1,1,1,4],[1,6,1,7]]}
[null,"Stewardship and Oversight Plan"]
[null,null,null,null,null,"Total Selected Construction Cost:",{"$f":"SUM(J5:J47)*1000","v":863706000},null,null,null,null,null,"Last Updated : 8/14/2015 1:27:48 PM"]
[null," Prior FY STIP Projects",null,null,null,null,null,null,null,null,null,null,"Design",null,null,null,null,null,null,null,null,null,null,null,"Design Build",null,null,"Construction"]
[null,"District","Project # Contract ID Federal #","County","Route","Description","State FY","Engineering ($1,000)","ROW ($1,000)","Construction ($1,000)","Total ($1,000)","Notes","Conceptual Report   **","Access Justification Requests   *","Design Exceptions   *","Value Engineering (VE)   **","Experimental Features   *","Preliminary Plans  (Identify Percent Complete with FHWA Contact)   *","Bridge Type Size and Location (TS&L)   **","Final Plans, Specifications, and Estimate (PS&E) approval   *","Transportation Management Plan (Includes TTCP) *","Construction Authorization   *","Addenda   *","Financial plan (for approval if > $500M, for review/comment if > $100M)","Request for Qualifications (RFQ)   **","Request for Proposals (RFP)   *","Alternative Applicable Standards (AAS)   ***","Quality Management Plan (QMP)","Alternative Technical Concepts (ATCs) When applicable   *","Bid analysis and concurrence in award   ***","Initial Inspection","Intermediate Inspections","In-Depth Inspection","Final Inspection","Construction Change Orders   *","Value Engineering change proposals   *","Final Acceptance",null,"Project Contacts"]
[null,"NW","1I2212 140124-A04  I-29-2(161)","Holt",29,"Resurface roadway from Rte. 59, south of Oregon, to the Bus. 71 interchange north of St.\nJoseph.",2014,472,0,6800,{"$f":"SUM(H5:J5)","v":7272},"Need to core to determine pvmnt thickness.  Will be a 14 mile mill and fill project.",null,null,null,null,null,null,null,null,null,null,null,null,null,null,null,null,null,null,"ü",null,null,"x","x","x","x",null,"Kevin Irving (FHWA), James Gillespie (MoDOT RE)"]
[null,"NW","1I2213 141121-A01    I-29-2(164)","Andrew","IS-29","Resurface road from Bus. 71 interchange north of St. Joseph to 1.5 miles south of Rte. O. ",2015,995,0,9139,10134,null,null,null,null,null,null,null,null,null,null,null,null,null,null,null,null,null,null,null,null,null,"x",null,null,null,null,null,"Kevin Irving (FHWA),           James Gillespie (MoDOT RE)"]
[null,"NE","3I2188 150220-B02  I-70-3(241)","Montgomery","IS-70","Pavement improvements on westbound lanes from 1.1 miles east of Rte. F to the Callaway\nCounty line near New Florence. Involves bridges A2709 in the northbound and southbound lanes.",2015,356,0,3880,4236,"Recommended Federal Oversight at least through the preliminsry design stage to determine the impact to the interstate, and possible ovesight during construction - F. Gonzalez",null,null,null,null,null,null,null,null,null,null,null,null,null,null,null,null,null,"ü",null,null,null,"x",null,"x","x",null,"Felix Gonzlez (FHWA), Richard Domzalski (MoDOT RE)"]
[null,"NE","3P2198  150320-B04   19-4(15)","Montgomery",19,"Bridge and pavement improvements from 0.8 mile north of Rte. WW to 0.3 mile south of Rte. WW near New Florence. Project involves bridge J0953.",2015,979,460,5769,7208,null,null,null,null,null,null,null,null,null,null,null,null,null,null,null,null,null,null,"ü","x","x",null,"x","x","x","x",null,"Felix Gonzlez (FHWA), Richard Domzalski (MoDOT RE)"]
[null,"KC","3I3003 150220-C01   I-70-2(104)","Saline","IS-70","Pavement and bridge improvements from 500' west of Blackwater River bridges to the\nCooper County line. $1,400,000 district operations budget. Project involves bridges A0207 and G0518.",2015,1154,0,10269,11423,null,null,null,null,null,null,null,null,null,null,null,null,null,null,null,null,null,null,null,null,null,"ü",null,null,null,null,null,"Kevin Irving (FHWA),  Brian Iles (MoDOT RE)"]
[null,"KC","4I1773 121116-C01   I-35-1(279)","Clay","IS-35","I-35 at Rt. 291-GRADING, DRAINAGE, ALT. PAVING, BRIDGE REPLACEMENT",2012,1467,55,11143,12665,null,null,null,null,null,null,null,null,null,null,null,null,null,null,null,null,null,null,null,"ü","ü",null,"ü","x","ü","x",null,"Kevin Irving (FHWA),      Zach Walker (MoDOT RE)"]
[null,"KC","4I1916 100820-403   I-70-1(200)","Jackson","IS-70","Bridge and pavement improvements on I-70 between I-435 and 31st Street and bridge improvements on Rte. 40 over the Blue River and the Manchester Trafficway in Kansas City. Design/Build project. Project involves bridges L0966, L0967, J0526 and A0622.",2015,9096,50,60017,69163,null,null,null,null,null,null,null,null,null,null,null,null,null,null,null,null,null,null,null,"ü","ü","x","x","x","x","x",null,"Kevin Irving (FHWA), Susan Barry  (MoDOT Project Director)"]
[null,"KC","4I2012 130322-C01   I-35-1(283)","Jackson","IS-35","Bridge improvements over 23rd Street Trafficway. Project involves bridge L0232.",2013,2360,0,13746,16106,null,null,null,null,null,null,null,null,null,null,null,null,null,null,null,null,null,null,null,"ü","ü",null,"ü","x","ü","x",null,"Kevin Irving (FHWA), Tom Markway (MoDOT RE)"]
[null,"KC","4I2228 120525-C06   I-70-1(196)","Jackson","IS-70","North outer road relocation from Jefferson Court to west of Sunny Lane Drive in Grain Valley. Amendment 3 new major project.",2012,219,890,2610,3719,null,null,null,null,null,null,null,null,null,null,null,null,null,null,null,null,null,null,null,"ü","ü",null,"ü","x","ü","x",null,"Kevin Irving (FHWA), Brian Iles  (MoDOT RE)"]
[null,"KC","4I2277 130322-C01   I-35-1(284)","Jackson","IS-35","Bridge improvements at Southwest Boulevard, BNSF Railroad, Jarboe and 27th Street in Kansas City. Project involves bridges A1701, A1702, A1703, A1705 and A1708.",2013,984,0,6955,7939,null,null,null,null,null,null,null,null,null,null,null,null,null,null,null,null,null,null,null,"ü","ü",null,"ü","x","ü","x",null,"Kevin Irving (FHWA), Tom Markway (MoDOT RE)"]
[null,"KC","4I2335 130125-C01   I-29-1(115)","Platte","IS-29","Interchange improvements at Tiffany Springs Parkway. SFY 2015 Cost share with the Kansas City TIF Commission. MoDOT's maximum is $4,727,356. TIF to provide design.",2013,1026,1047,11547,13620,null,null,null,null,null,null,null,null,null,null,null,null,null,null,null,null,null,null,null,"ü","ü",null,"ü","x","ü","x",null,"Kevin Irving (FHWA),      Zach Walker (MoDOT RE)"]
[null,"KC","4I2383","Jackson","IS-435","Bridge rehabilitation at Stadium Drive in Kansas City. $14,000 Statewide TE  funds. Project involves bridges A0994 and A2851.",2015,717,0,2334,3051,null,null,null,"-",null,null,null,null,null,"ü","ü",null,null,null,null,null,null,null,null,null,null,"x",null,null,null,null,"Kevin Irving (FHWA), Lee Ann Kell (MoDOT PM)","Kevin Irving (FHWA), Tom Markway (MoDOT RE)"]
[null,"KC","4I3005 141121-C01    I-35-1(285)","Clay","IS-35","Interchange, ramp and auxiliary lane improvements from the I-435 interchange to the Pleasant Valley Road/South Liberty Parkway/US 69 interchange. $13,194,000 Economic Development funds, $4,200,000 Liberty and $5,000,000 MARC STP-Urban. Project involves bridges A0496 and LO501.",2015,5100,120,31075,36295,null,null,null,null,null,null,null,null,null,null,null,null,null,null,null,null,null,"ü","ü","ü","x","x","x","x","x","x",null,"Kevin Irving (FHWA),         Zach Walker  (MoDOT RE)"]
[null,"KC","4I3023  150123-C01   I-35-1(288)","Clay","IS-35","Bridge improvements, including the addition of an auxiliary lane, widening of the existing bridges and pavement replacement, over Poe Street in Claycomo. Project involves twin bridges L0759.",2015,1016,0,8375,9391,null,null,null,null,null,null,null,null,null,null,null,null,null,null,null,null,null,"ü",null,"ü","x","x","x","x","x","x",null,"Kevin Irving (FHWA),         Zach Walker  (MoDOT RE)"]
[null,"KC","4P1475 140523-C06   I-71-4(120)","Cass","IS-49","Signal improvements, replace bridge, and capacity improvements at the Rte. 291\ninterchange. Project involves bridge A1621. $10,510,000 Highways 71/291 Partners in\nProgress TDD.",2014,1727,1014,12796,15537,null,null,null,null,null,null,null,null,null,null,null,null,null,null,null,null,null,null,null,"ü","x","x","x","x","x","x",null,"Kevin Irving (FHWA), John Voss (MoDOT RE)"]
[null,"KC","4P2247  150515-C05  FAF-71-4 (118)","Cass","IS-49","Construction of a new interchange at 211th Street from Rte. Y to Rte. J in Peculiar. Cost Share with Peculiar. $5.134 million Cost Share funds and $6.053 million city. MoDOT's maximum is $8.164 million.",2015,2228,304,9251,11783,"AJR Approved - DDI",null,null,null,null,null,null,null,"ü",null,"ü","ü",null,null,null,null,null,"-","ü","x","x","x","x","x","x","x",null,"Kevin Irving (FHWA), Jon Voss   (MoDOT RE)"]
[null,"KC","4P2247B 150515-C05  FAF-71-4 (118)","Cass","CRD 211 Street","Roadway improvements from the east outer road to School Road in Peculiar. Project funded with 100% city funds. Let in combination with 4P2247.",2015,320,57,1383,1760,null,null,null,null,null,null,null,null,"ü",null,"ü","ü",null,null,null,null,null,"-","ü","x","x","x","x","x","x","x",null,"Kevin Irving (FHWA), Jon Voss (MoDOT RE)"]
[null,"KC","4P2279 140709-C01 ACSTP-0691021","Platte",69,"Bridge improvements over the Missouri River. Project involves the Platte Purchase bridge A0450 and the Fairfax Bridge K0456. Potential Design/Build project. $35,215,000 from KDOT.",2015,3037,500,74052,77589,null,null,null,"x",null,null,null,null,null,null,null,null,null,null,null,null,"ü",null,"ü","ü","x","x","x","x","x","x",null,"Ken Foster (FHWA),            Lisa Stupps (MoDOT Project Director)"]
[null,"KC","4S2029 120525-C06 FAF-40-1(9)","Jackson",40,"Cost Share project with City of Grain Valley for intersection and roadway improvements\nto Rte. 40 and Rtes. AA/BB in the City of Grain Valley. MoDOT's maximum is\n$8,209,174. City of Grain Valley is responsible for 50% of project costs and costs\n in excess of $16,418,348.",2012,1637,2763,13790,18190,null,null,null,null,null,null,null,null,null,null,null,null,null,null,null,null,null,null,null,null,"ü","ü",null,"ü","x","ü","x","Kevin Irving (FHWA),      Brian Iles  (MoDOT RE)"]
[null,"KC","4S3068","Jackson","IS 70","Bridge improvements over I-70 in Kansas City. Project involves bridge A2842.",2015,281,0,2335,2616,null,null,null,"-",null,null," ",null,null,"ü","ü",null,null,null,null,null,null,null,null,null,null,"x",null,null,null,null,null,"Kevin Irving (FHWA), Tom Markway (MoDOT RE)"]
[null,"CT","5I2172 ____NA_____  I-70-3(222)","Boone","IS-70","Bridge improvements over West Boulevard in Columbia. Design/Build project. Project involves bridge L0845 over West Boulevard.",2015,2091,10,18363,20464,"Design/Build","-","-","ü",null,"x",null,"x",null,null,"ü","-",null,null,"ü","ü","x",null,"ü","x","x","x","x","x","x","x",null,"Mike McGee (FHWA),        Travis Koestner (MoDOT PD)"]
[null,"CT","5P0820D 140919-D01 50-3(85)","Cole",50,"Interchange at Lafayette Street and capacity improvements from Monroe Street to Clark Avenue in Jefferson City. $999,829 from FY2010 Appropriations Bill Earmark Demo ID MO237. ",2015,0,0,16403,16403,"EIS",null,null,null,null,null,null,null,null,null,null,null,null,null,null,null,null,null,"ü","ü","x","x","x","x","x","x",null,"Mike McGee (FHWA), Mike Dusenberg (MoDOT PM), Terry Imhoff (MoDOT RE)"]
[null,"CT","5P0951B 120824-D01 FAF-50-3(82)","Osage",50,"Grading, bridges, paving and right of way acquisition for four-lane roadway from Route 63 junction to County Road 604 west of Linn.",2012,1650,4850,32684,39184,null,null,null,null,null,null,null,null,null,null,null,null,null,null,null,null,null,null,null,"ü","ü","ü","x","x","-","x",null,"Mike McGee (FHWA), Terry Imhoff (MoDOT RE)"]
[null,"SL","6I2005 111021-F01   I-70-5(330)","St Louis","IS-70","Bridge improvements on westbound Blanchette Bridge over the Missouri River. Project involves bridge L0561.",2011,6420,0,61714,68134,null,null,null,null,null,null,null,null,null,null,null,null,null,null,null,null,null,null,null,null,null,null,"ü","ü","ü","x",null,"Greg Budd (FHWA),        Niall Jansson (MoDOT RE)"]
[null,"SL","6I2232  150220-FOl   I-70-5(321)","St. Louis","IS-70","Bridge improvements at the I-270 directional interchanges. Project involves bridges A3749, A3750, A3752, A3753, A3743, A3744, A3746, A3747, A0180N, A0180S, A3745, A3748, A3765, A3729 and A3787.",2015,1925,0,9551,11476,"Recommend full FHWA O/S given that work is at a system interchange.  Construction O/S could be reduced if \"bridge improvements\" are minor in nature.  GBudd",null,null,null,null,null,null,null,null,null,null,null,null,null,null,null,null,null,"ü","x",null,"x","x","x","x","x",null,"Felix Gonzlez (FHWA),  Lee Hilner (MoDOT PM)  Niall Jahsson(RE)"]
[null,"SL","6I2276 141121-F01   I-70-4(193) ","St Charles","I-70","Pavement improvements from Rt. K to Rt. C",2014,288,0,3316,3604,"This one we should do a reduced level of O/S to make sure that MoDOT and St. Charles 1-way outer road proposal compliment each other, and to determine need to include MoDOT work into the current AJR projcess for the StChCo project.  Recommend O/S through preliminary plan stage.  GBudd",null,null,null,null,null,null,null,null,null,null,null,null,null,null,null,null,null,null,null,null,null,"ü","ü","x","x",null,"Felix Gonzalez (FHWA), Jim Wright (MoDOT RE)","*Note: Anticipated NTP: February 2, 2015"]
[null,"SL","6I2377B 140321-F01    0641066","St Louis City","IS-64","Bridge improvements on the westbound Poplar Street bridge over the Mississippi River. Project involves bridge A1502, 1504, and 1505.",2014,5153,1000,20948,27101,null,null,null,null,null,null,null,null,null,null,null,null,null,null,null,null,null,null,null,"ü","x",null,"x","x","x","x",null,"Dawn Perkins (FHWA),  Scott Wahausen (MoDOT RE)"]
[null,"SL","6I2381 140822-F01    I-64-1(64)","St Louis","IS-64","Pavement improvements from Rt. 340 to Ballas Rd.  To be let in combinaation with J6I2434.",2015,619,0,4678,5297,"This project is already shown in the STIP as a full O/S project.  Recommend full O/S.  Will be  a combo with J6I2434.  Total cost of $33M+/-.",null,null,null,null,null,null,null,null,null,null,null,null,null,null,null,null,null,"ü","ü","ü",null,"x","ü","ü","x",null,"Felix Gonzlez (FHWA),           Tom Montes (MoDOT PM) John Lewis (MoDOT RE)"]
[null,"SL","6I2382 140523-F01    I-170-5(269)","St Louis","I-170","Pavement improvements from I-270 to Rt. D",2014,644,0,5024,5668,"This project is included in the STIP as an O/S project.  This project shares end termini and delivery timeframe with adjacent project J6I3014.  Assume that these will be let in combo, so should make O/S.  Gbudd",null,null,null,null,null,null,null,null,null,null,null,null,null,null,null,null,null,null,"ü",null,null,"x","x","ü",null,null,"Greg Budd (FHWA),        Niall Jannson (MoDOT RE)"]
[null,"SL","6I2413\n6I2413B 130628-F01 0705333","St Louis City","IS-70 and LKS","FY11 TIGER project: MoDOT - I-70 and ramp and JNEM park improvements, GRG - LKS improvements.  Project involves bridges A1510, A1511, A1512, A1513. $2 M Public Lands funds, $700 K FTA/Metra, and $20 M TIGER Grant.","2012\n2013\n5513-14\n5718-13\n5763-13",8557,300,53185,62042,"\nSee Grant Agreement No. 24\n0705(323) for J6I2413 PE and ROW match\n0705(332) for J6I2413B PE and ROW match",null,null,null,null,null,null,null,null,null,null,null,null,null,null,null,null,null,null,"ü","x","x","x","x","x","x",null,"Dawn Perkins (FHWA),  John Grana (MoDOT RE) and Russ Klein (MoDOT LPA Liaison)"]
[null,"SL","6I2434 140822-F01    I-64-1(72)","St Louis","IS-64","Capacity improvements from Rt. 340 to I-270.  To be let in combination with J6I2381.",2015,3425,0,24136,27561,"This project is already shown in the STIP as a full O/S project.  Recommend full O/S.  Will be  a combo with J6I2381.  Total cost of $33M+/-.",null,null,null,null,null,null,null,null,null,null,null,null,null,null,null,null,null,"ü","ü","ü",null,"x","ü","ü","x",null,"Felix Gonzlez (FHWA),  Tom Montes (MoDOT PM) John Lewis (MoDOT RE)"]
[null,"SL","6I3014 140321-F11   I-170-5(271)","St Louis","IS-170","Pavement and bridge improvements from Rte. D to north of I-64. Project involves bridges\nA2779 and A2788.",2014,398,0,3683,4081,null,null,null,null,null,null,null,null,null,null,null,null,null,null,null,null,null,null,null,"ü","-",null,"ü","ü","x","x",null,"Felix Gonzalez (FHWA),  Niall Jansson (MoDOT RE)","*Note:                                    this project was suspended until next const. season."]
[null,"SL","6I3026B 140321-F01    0553096","St Louis City","IS-55","Bridge improvements on the westbound Poplar Street bridge over the Mississippi River. Project involves bridge A1500. $3,000,000 IDOT funds.",2014,383,0,6002,6385,null,null,null,null,null,null,null,null,null,null,null,null,null,null,null,null,null,null,null,"ü","x",null,"x","x","x","x",null,"Dawn Perkins (FHWA), Scott Washausen (MoDOT RE)"]
[null,"SL","6I3034B&C  150515-F01   I-44-4(182)","St Louis","IS-44","Pavement and bridge improvements from Murdoch Avenue to Hampton Avenue. Project involves bridges A2368, A2318, A2394, A1739 and A1733.",2015,3714,5,31516,35235,"Full FHWA O/S recommended.  Gbudd",null,null,null,null,null,null,null,null,null,null,null,null,null,null,null,null,null,"ü","x",null,"x","x","x","x","x",null,"Felix Gonzlez (FHWA), Jeff Bohler (MoDOT PM)  Scott Washausen (RE)"]
[null,"SL","6P1436 120710-F01 40-5(103)","St Charles","IS-64","\nConstruct new Boone Bridge and improve capacity from Rte. 94 to Spirit of St. Louis Boulevard. Design/Build project. Project involves bridge J1000.",2013,6355,1300,122960,130615,null,null,null,null,null,null,null,null,null,null,null,null,null,null,null,null,null,null,null,"ü","ü","ü","x","x","x","x",null,"Greg Budd (FHWA),         Jim Gramaud (MoDOT RE)"]
[null,"SL","6P2376 140523-F05    I-270-5(339)","St Louis","I-70","Intersection improvements from entrance ramp @ Dunn Road to WB I-270",2014,240,40,1086,1366,"Recommend O/S through preliminary design to determine impact to interstate and need for AJR.  May end up that no O/S is needed, but should be involved early on to make determination.  Gbudd",null,null,null,null,null,null,null,null,null,null,null,null,null,null,null,null,null,null,"-",null,null,"x","x","x","x",null,"Greg Budd (FHWA),          Niall Jansson (MoDOT RE)"]
[null,"SL","6U1028 130206-F01 FAF-364-1(35)","St Charles",364,"Route 364 -Page Ave. Phase 3 - Design Build",2013,3679,35662,66000,105341,null,null,null,null,null,null,null,null,null,null,null,null,null,null,null,null,null,null,null,"ü","ü","ü","ü","ü","ü","x",null,"Felix Gonzalez (FHWA), Dave Simmons (MoDOT RE)"]
[null,"SW","7I2181         140919-G01        I-44-1(85)","Jasper","IS-44","Roadway and bridge improvements from east of Rte. 249 to Rte. 66. Project involves bridges A0624 and A0625. Economic Development project with Joplin. $5,575,090 Economic Development funds. $152,000 from 2009 IM Discretionary Earmark.",2015,1107,750,9250,11107,"Economic Development part of I-44 interchange. ",null,null,null,null,null,null,null,null,null,null,null,null,null,null,null,null,null,"ü","ü",null,null,"x","x","x","x",null,"Mike McGee (FHWA),  Danica Stovall-Taylor  (MoDOT PM), Jason Evenden (MoDOT RE)"]
[null,"SW","8P0683 140611-G01 FAF-60-2(62)","Greene",60,"Roadway improvements from County Road 243 to east of Rogersville. Design/Build project.",2014,3842,5180,28249,37271,"CN is construction and RW cost",null,null,null,null,null,null,null,null,null,null,null,null,null,null,null,null,null,null,"ü","x",null,"x","x","x","x",null,"Mike McGee (FHWA),       Sean Matlock (MoDOT Project Director)"]
[null,"SW","8U0500 140822-G08 65-2(86)","Greene",65,"Bridge and interchange improvements at Battlefield Road in Springfield. Project involves bridge A1656. $3,708,853 Cost Share, $1,189,657 Ozarks Transportation Organization BRM, $4,153,500 Springfield, $2,291,368 Springfield STP-Urban and $500,000 Greene",2015,2029,566,11290,13885,"Full Oversight. RB",null,null,null,null,null,null,null,null,null,null,null,null,null,null,null,null,null,null,"ü","x",null,"x","x","x","x",null,"Mike McGee (FHWA),  Stacy Reese (MoDOT PM),  Brad Gripka  (MoDOT RE)"]
[null,"SW",3200718,"Jasper","5 City Streets","FY12 TIGER project, Maiden Lane, Schifferdecker, 26th Street, 20th Stree RR Overpass, and 20th Street Transit","02HL-10  01HL-11  03TG\n01TG-12\n01TG-13",540,3297,14905,18742,"See Grant Agreement No. 8",null,null,null,null,null,null,null,null,null,null,null,null,null,null,null,null,null,null,"ü","x","x","x","x","x","x",null,"Dawn Perkins (FHWA),  Jim McDiarmid (MoDOT LPA Liaison)"]
[null,"SE","9P2244B    150123-H02                I-55-1(149)","Pemiscot","IS-55","Pavement improvements northbound from 3.9 miles south of Rte. 84 to 0.3 mile south of Rte. 84.",2015,323,0,4102,4425,"MOT - System Interchange (I-55/I-155)",null,null,null,null,null,null,null,null,null,null,null,null,null,null,null,null,null,null,null,null,"ü",null,null,null,null,null,"Mike McGee (FHWA),  Eric Krapf (MoDOT PM),  Brian Holt (MoDOT RE)"]
[null,"SE","0P0959 120525-H01 FAF-67-1(22)","Butler",67,"Capacity improvements 1.5 miles south of Rte. M to 1 mile south of Rte. 160. Delta Regional Authority is providing funds of $676,000 in FY 2012. Amendment 3 new major project.",2012,1030,3242,17395,21667,null,null,null,null,null,null,null,null,null,null,null,null,null,null,null,null,null,null,null,"ü","ü",null,"ü","x","-","x",null,"Mike McGee (FHWA),     Audie Pulliam (MoDOT RE)"]
[]
[null,null,null,null,null,null,null,null,null,null,null,null,"LEGEND"]
[]
[null,null,null,null,null,null,null,null,null,null,null,null,null,"x",null,"Action requiring FHWA involvement",null,null,null,null,null,null,null,null,null,null,"*",null,"Submittal requires FHWA approval"]
[]
[null,null,null,null,null,null,null,null,null,null,null,null,null,"ü",null," Action completed",null,null,null,null,null,null,null,null,null,null,"**",null,"Submittal for FHWA review/comment"]
[]
[null,null,null,null,null,null,null,null,null,null,null,null,null,"-",null," No FHWA approvals/actions were required",null,null,null,null,null,null,null,null,null,null,"***",null,"Submittal requires FHWA concurrence"]
[]
[null,null,null,null,null,null,null,null,null,null,null,null,null,"ü",null,"Additional FHWA approval action taken"]

{"sheet":"2016","index":1,"n_rows":39,"n_cols":38,"rows_kept":39,"cut":false,"hidden":false,"merged":[[0,1,0,37],[1,1,1,4],[1,6,1,7],[2,1,2,11],[2,24,2,26],[2,27,2,36],[2,12,2,23],[1,12,1,37]]}
[null,"Stewardship and Oversight Plan"]
[null,null,null,null,null,"2016 Total Selected Construction Cost:                 2016 STIP Construction Award Amount:","$297,501,000 $596,400,000",null,null,null,null,null,"Last Updated : 8/14/2015 1:27:48 PM"]
[null," 2016 STIP Project",null,null,null,null,null,null,null,null,null,null,"Design",null,null,null,null,null,null,null,null,null,null,null,"Design Build",null,null,"Construction"]
[null,"District","Job No.","County","Route","Description","State FY","Engineering ($1,000)","ROW ($1,000)","Construction ($1,000)","Total ($1,000)","Notes","Conceptual Report   **","Access Justification Requests   *","Design Exceptions   *","Value Engineering (VE)   **","Experimental Features   *","Preliminary Plans (Identify Percent Complete with FHWA Contact)   *","Bridge Type, Size, and Location (TS&L)   **","Final Plans, Specifications, and Estimate (PS&E) approval   *","Transportation Management Plan (Includes TTCP) *","Construction Authorization   *","Addenda   *","Financial plan (for approval if > $500M, for review/comment if > $100M)","Request for Qualifications (RFQ)   **","Request for Proposals (RFP)   *","Alternative Applicable Standards (AAS)   ***","Alternative Technical Concepts (ATCs) When applicable   *","Bid analysis and concurrence in award   ***","Initial Inspection","Intermediate Inspections","In-Depth Inspection","Final Inspection","Construction Change Orders   *","Value Engineering change proposals   *","Final Acceptance",null,"Project Contacts"]
[null,"NE","2I3055","Montgomery","IS 70","Pavement improvements on eastbound lanes from the Callaway County line to 1.1 miles west of Rte.161 near Mineola. ",2016,94,0,1171,1256,null,"x",null,null,null,null,"x",null,"x","x","x","x",null,null,null,null,"x","x","x",null,null,"x","x","x","x",null,"Felix Gonzlez (FHWA), Jerad Noland (MoDOT PM) Richard Domzalski (MoDOT RE)"]
[null,"NE","3I2189","Montgomery","IS-70","Pavement improvements on eastbound lanes from 1.1 mile west of Rte. 161 to 2 miles east of Rte. F near New Florence. Let in required combination with 2I3055.",2016,333,0,3169,{"$f":"H6+I6+J6","v":3502},"This project is already shown in the STIP as a Federal Oversight. Recommended full Federal Oversight - F. Gonzalez 3 3/4 inch overlay.  Good project to maintain involvement in the NE District","x",null,null,null,null,"x",null,"x","x","x","x",null,null,null,null,"x","x","x",null,null,"x","x","x","x",null,"Felix Gonzlez (FHWA), Jerad Noland (MoDOT PM) Richard Domzalski (MoDOT RE)"]
[null,"KC","4I3022B","Jackson","IS 435","Bridge improvements at Front Street, Rte. 24 and Rte. 78. $220,000 Open Container funds. Project involves bridges A1698, A1750 and A1682.",2016,548,0,3459,{"$f":"SUM(H7:J7)","v":4007},null,null,null,null,null,null,null,null,null,"x","x","x",null,null,null,null,null,"x","x","x","x","x","x","x","x","x","Kevin Irving (FHWA), Lee Ann Kell (MoDOT PM)"]
[null,"KC","4I3037","Platte","IS 29","Pavement improvements from Rte. 273 north of Platte City to I-435 in Kansas City. ",2016,462,0,4548,5010,null,null,null,null,null,null,null,null,null,"x","x","x",null,null,null,null,null,"x","x",null,"x","x","x","x","x",null,"Kevin Irving (FHWA), James Burgess  (MoDOT PM)"]
[null,"KC","4P2257","Cass","MO 7","Roadway improvements from Independence Street to Stella Avenue in Harrisonville. $2,040,000 MARC STP-Urban funds, $510,000 Harrisonville and $145,000 Statewide Transportation Enhancement funds. ",2016,1062,72,3280,4414,null,null,null,null,null,null,null,null,null,null,null,null,null,null,null,null,null,"x","x","x","x","x","x","x","x",null,"Kevin Irving (FHWA), Lee Ann Kell (MoDOT PM)"]
[null,"KC","4P3004","Jackson","CST MAIN ST","Bridge replacement at Main Street over I-49 in Grandview. $222,000 Statewide Transportation Enhancement funds. Project involves bridge L0950. ",2016,842,0,2860,3702,null,null,null,null,null,null,null,null,null,null,null,null,null,null,null,null,null,"x",null,null,"x",null,null,null,null,null,"Kevin Irving (FHWA), Mark Fisher (MoDOT PM)"]
[null,"KC","4S3052","Jackson","US 24","Pavement and sidewalk improvements from Ewing Avenue to the Rte. 291 outer road in Independence. $430,000 Statewide Transportation Enhancement funds. ",2016,560,10,4002,4572,null,null,null,null,null,null,null,null,null,null,null,null,null,null,null,null,null,"x","x","x","x","x","x","x","x",null,"Kevin Irving (FHWA), Lee Ann Kell (MoDOT PM)"]
[null,"SL","6I1010J","Jefferson","IS 55","Capacity improvements to northbound I-55 from the northbound on-ramp at Rte. Z to 0.8 miles north of Rte. Z. This project involves bridge A1036.",2016,386,47,2680,3113,null,"ü",null,"-",null,null,"ü",null,null,"ü","x",null,null,null,null,null,null,"x",null,null,"x",null,null,"x",null,null,"Felix Gonzalez (FHWA), Shirley Norris (PM)  Christine Redhage (RE)"]
[null,"SL","6I2104","St Louis","IS-70","Bridge improvements at the I-170 interchange. Project involves bridges A2999, A3000, A3001, A3002, A3003, A3004, A3005, A3006, A3007, A3008 and A3009.",2016,939,0,5814,6753,"Recommend O/S at least through prel design, and until final cost and scope is detemrined. (Gbudd)","x",null,"x",null,"x","x","x",null,"x","x",null,null,null,null,null,"x","x","x",null,"x",null,"x","x",null,null,"Felix Gonzlez (FHWA),  Lee Hilner (MoDOT PM), Niall Jahsson (RE)"]
[null,"SL","6I2326","St. Charles","IS-70","Bridge Improvememnts at Fairgrounds Road and 5th Street. ",2016,175,0,1209,1384,"Will most likely be let in combo with J6I3026, below, so probably full O/S needed.","ü","ü","ü","x","x","x","x","x","x","x","x",null,null,null,null,"x","x","x","x","x","x","x","x","x",null,"Felix Gonzalez (FHWA), Tim Schroeder  (MoDOT PM)"]
[null,"SL","6I2377C\n0641070","St Louis City","IS-64","Bridge,  ramp, and capacity improvements from 4th Street to Illinois on the eastbound Poplar Street Bridge approaches. Project involves bridges A1500, A1501 and A1503.",2016,5013,1000,30847,36860,"Full O/S recommended.  Gbudd",null,"ü","x","ü","x","ü","ü","x","x","x","x",null,null,null,null,"x","x","x","x",null,"x","x","x","x",null,"Dawn Perkins (FHWA), Jeff Bohler (MoDOT PM)"]
[null,"SL","6I2415B","St. Louis","Various","Create Bus Rapid Transit (BRT) and High Occupancy Vehicle (HOV) lanes at various locations in St. Louis County.",2016,130,0,1020,1150,null,"x","x","x",null,"x","x","x",null,"x",null,null,null,null,null,null,"x",null,"x",null,"x",null,null,null,null,null,"Felix Gonzlez (FHWA), Lee Hilner (MoDOT PM)"]
[null,"SL","6I2423","St Louis","IS-44","Interchange improvements at I-44/Rte. 141, intersection improvements at Vance Rd./Rte.\n141 and pavement improvements along Rte. 141 from north of Vance Rd. to south of I-44.\nDesign/Build project. $2,550,000 Congestion Mitigation & Air Quality Improvement\nProgram funds.",2016,2966,1000,21534,25500,"This project is already shown in the STIP as a full O/S.  This will be a combo project with the current D/B project J63019.  Being D/B, it should be O/S.  Gbudd","ü","x","x","x","x","x","x","x","x","x","x",null,"x","x","x","x","x","x","x","x","x","x","x","x",null,"Felix Gonzlez (FHWA), Tom Montes & David Simmons (MoDOT PM)"]
[null,"SL","6I3025\n0553093","St Louis City","IS-55","Bridge maintenance on the Poplar Street Bridge over the Mississippi River. $2,965,000 of IDOT funds for construction. Project involves bridge A1500.",2016,393,0,5930,6323,"Will most likely be let in combo with J6I3026, below, so probably full O/S needed.",null,null,"x",null,"x",null,null,"x","x","x","x",null,null,null,null,"x","x","x","x",null,"x","x","x","x",null,"Dawn Perkins (FHWA), Jeff Bohler (MoDOT PM)"]
[null,"SL","6I3026\n0553092","St Louis City","IS-55","Bridge improvements on the eastbound Poplar Street bridge over Mississippi River. Project involves bridge A1500.",2016,790,0,15400,16190,"Major bridge crossing.  Recommend maintaining full O/S.  Gbudd",null,"ü","x","ü","x","ü","ü","x","x","x","x",null,null,null,null,"x","x","x","x",null,"x","x","x","x",null,"Dawn Perkins (FHWA), Jeff Bohler (MoDOT PM)"]
[null,"SL","6I3031","St Louis City","IS-44","Rehabilitate bridges at the I-44/I-55 interchange. Project involves bridges A1542, A1536, A1092, A1535, and A1093.",2016,653,0,4202,4855,"Recommend at least partial O/S until full scope is known, and the final estimate is determined.  May want to have Conceptual Report and TS&L reviewed.  Gbudd","ü",null,"ü",null,"x","x",null,null,"ü","x",null,null,null,null,null,"x","x",null,null,"x",null,"x","x",null,null,"Felix Gonzlez (FHWA), Jeff Bohler (MoDOT PM)"]
[null,"SL","6I3034D","St. Louis","IS 44","Pavement and bridge improvement from Murdoch to River Des Peres at BNSF railroad. Project involves bridges A1739 and A1733. ",2016,1296,57,15967,17320,null,null,null,"ü",null,"x","x",null,"x","x","x","x",null,null,null,null,"x","x",null,null,"x",null,"x","x",null,null,"Felix Gonzlez (FHWA), Jeff Bohler (MoDOT PM)"]
[null,"SL","6P2321\n0471072","Franklin",47,"FY 14 TIGER project: Replace bridge over the Missouri River from Augusta Bottom road to Third Street in Washington. $10,000,000 TIGER VI funds, $500,000 Washington, $250,000 Franklin County and $50,000 Warren County. Project involves bridge K0969.",2016,6619,476,50195,57290,"Recommend full O/S for duration of project (Gbudd).  Potential ATC Project (Sbowles)","ü",null,"ü","ü",null,"ü","ü","x","x","x","x",null,null,null,null,"x","x","x","x","x","x","x","x","x",null,"Felix Gonzlez (FHWA),  Shirly Norris (MoDOT PM)"]
[null,"SL","6P3071","St Charles",61,"New interchange at Rte. P and Peine Road and safety improvements at median crossovers from north of Peine Road to north of Rte. A in Wentzville. $4,331,337 Cost Share, $2,795,199 Wentzville and $3,500,000 St. Charles County.",2016,1640,788,10085,12513,null,"ü",null,"x","ü","x","x",null,null,"x","x",null,null,null,null,null,"x","x",null,null,"x",null,"x","x",null,null,"Felix Gonzlez (FHWA), Tim Schroeder (MoDOT PM)"]
[null,"SL","6S3047 150515-F03 FAS-S500(35)","St Charles","IS-70","Intersection Improvements at I-70 westbound ramps and north outer road. $944,000 Congestion Mitigation and Air Quality Improvement Program funds.",2016,163,8,2150,2321,"Full FHWA O/S recommended.  Gbudd",null,null,null,null,null,"ü",null,"ü","ü",null,null,null,null,null,null,null,null,null,null,"x",null,null,null,null,"x","Felix Gonzlez (FHWA), Tim Schroeder (MoDOT PM)"]
[null,"SW","8I3000","Greene","IS-44","Pavement improvements from west of Rte. 266 (Chestnut Expressway) to east of Rte. 125.\n$258,000 Open Container funds. miles east of Rte. 65.",2016,608,0,7819,8427,null,null,null,"x","x",null,null,null,null,"x","x",null,null,null,null,null,null,"x","x",null,null,"x","x","x","x",null,"Mike McGee (FHWA), Jen Thomas (MoDOT PM)"]
[null,"SW","8P2196","Greene",65,"Railroad crossing grade separation at Chestnut Expressway and BNSF railway 0.2 mile west of Rte. 65.",2016,1013,4067,9696,14776,null,null,null,"x",null,"x","x","x","x","x","x","x",null,null,null,null,"x","x","x","x",null,"x","x","x","x",null,"Mike McGee (FHWA), Don Saiko (MoDOT PM)"]
[null,"SW","N/A Not in FMIS yet","Taney",76,"Highway 76 Country Boulevard Complete Streets (Spirit of 76)",2016,null,null,76015,76015,null,null,null,null,"x",null,"x",null,"x","x","x","x","x",null,null,null,null,"x","x","x",null,null,"x","x","x",null,"Scott Bowles (FHWA), Beth Schaller (MoDOT LPA Area Engineer)"]
[null,"SE","0P2298","St. Francois","US 67","Pavement improvements from St. Francois River Bridge to Jefferson County. ",2016,1012,0,8284,9296,null,null,null,"x",null,null,"x",null,null,"x","x",null,null,null,null,null,null,"x","x",null,null,"x","x","x","x",null,"Mike McGee (FHWA)"]
[null,"SE","9P3121","Bollinger","MO 72","Pavement improvements from Rte. 51 to Rte. 34/25/61 intersection in Jackson.",2016,556,0,6165,{"$f":"SUM(H29:J29)","v":6721},null,null,null,"x",null,null,"x",null,null,"x","x",null,null,null,null,null,null,"x","x",null,null,"x","x","x","x",null,"Mike McGee (FHWA)"]
[null,null,null,null,null,null,null,null,null,null,null,{"$f":"K30*0.8*1000","v":0}]
[null,null,null,null,null,null,null,null,null,null,null,null,null,null,null,null,null,null,null,null,null,null,null,null,"LEGEND"]
[]
[null,null,null,null,null,null,null,null,null,null,null,null,null,"x",null,"Action requiring FHWA involvement",null,null,null,null,null,null,null,null,null,null,"*",null,"Submittal requires FHWA approval"]
[]
[null,null,null,null,null,null,null,null,null,null,null,null,null,"ü",null," Action completed",null,null,null,null,null,null,null,null,null,null,"**",null,"Submittal for FHWA review/comment"]
[]
[null,null,null,null,null,null,null,null,null,null,null,null,null,"-",null," No FHWA approvals/actions were required",null,null,null,null,null,null,null,null,null,null,"***",null,"Submittal requires FHWA concurrence"]
[]
[null,null,null,null,null,null,null,null,null,null,null,null,null,"ü",null,"Additional FHWA approval action taken"]

{"sheet":"2017","index":2,"n_rows":31,"n_cols":38,"rows_kept":31,"cut":false,"hidden":false,"merged":[[0,1,0,37],[1,1,1,4],[1,6,1,7],[2,1,2,11],[2,24,2,26],[2,27,2,36],[2,12,2,23],[1,12,1,37]]}
[null,"Stewardship and Oversight Plan"]
[null,null,null,null,null,"2017 Total Selected Construction Cost:                 2017 STIP Construction Award Amount:","$116,233,000 $338,700,000",null,null,null,null,null,"Last Updated : 8/14/2015 1:27:48 PM"]
[null," 2017 STIP Project",null,null,null,null,null,null,null,null,null,null,"Design",null,null,null,null,null,null,null,null,null,null,null,"Design Build",null,null,"Construction"]
[null,"District","Job No.","County","Route","Description","State FY","Engineering ($1,000)","ROW ($1,000)","Construction ($1,000)","Total ($1,000)","Notes","Conceptual Report   **","Access Justification Requests   *","Design Exceptions   *","Value Engineering (VE)   **","Experimental Features   *","Preliminary Plans (Identify Percent Complete with FHWA Contact)   *","Bridge Type, Size, and Location (TS&L)   **","Final Plans, Specifications, and Estimate (PS&E) approval   *","Transportation Management Plan (Includes TTCP) *","Construction Authorization   *","Addenda   *","Financial plan (for approval if > $500M, for review/comment if > $100M)","Request for Qualifications (RFQ)   **","Request for Proposals (RFP)   *","Alternative Applicable Standards (AAS)   ***","Alternative Technical Concepts (ATCs) When applicable   *","Bid analysis and concurrence in award   ***","Initial Inspection","Intermediate Inspections","In-Depth Inspection","Final Inspection","Construction Change Orders   *","Value Engineering change proposals   *","Final Acceptance",null,"Project Contacts"]
[null,"NW","1P0875","Dekalb"," US 36","Replace bridge decks in the eastbound and westbound lanes over I‐35 in Cameron. Project involves bridge A1059. ",2017,255,0,1988,{"$f":"SUM(H5:J5)","v":2243},null,"x",null,"x",null,"x","x","x","x","x","x","x",null,null,null,null,null,"x","x","x","x","x","x","x","x",null,"Kevin Irving (FHWA), Wes Moore (MoDOT PM)"]
[null,"NW","1P3086","Dekalb","US 36","Reconstruct the horizontal curve in the westbound lane 0.2 mile east of Rte. 33 near Osborn.",2017,356,0,3137,{"$f":"SUM(H6:J6)","v":3493},null,"x",null,"x",null,"x","x",null,"x","x","x","x",null,null,null,null,null,"x","x","x","x","x","x","x","x",null,"Kevin Irving (FHWA), Wes Moore (MoDOT PM)"]
[null,"NE","3P2206","Ralls","US 61","Pavement and intersection improvements on northbound and southbound lanes from Warren Barrett Drive in Hannibal to 0.5 mile south of Rte. 19 near New London. $1,672,000 Open Container funds.",2017,423,0,4981,{"$f":"SUM(H7:J7)","v":5404},null,"x",null,null,null,null,"x",null,"x","x","x","x",null,null,null,null,null,"x",null,null,"x",null,"x","x","x",null,"Felix Gozalez (FHWA),  Jerad Noland (PM)"]
[null,"KC","4I1980","Clay","IS 435","Operational improvements to the interchange at Rte. 210. ",2017,2729,0,14771,{"$f":"SUM(H8:J8)","v":17500},"AJR required ",null,null,null,null,null,"x",null,"x",null,"x",null,null,null,null,null,"-","x","x","x","x","x","x","x","x",null,"Kevin Irving (FHWA),  Debbie Huffman  (MoDOT PM)"]
[null,"KC","4I3105","Platte","IS 29","Pavement improvements from Todd Creek to Vivion Road. ",2017,844,0,8380,{"$f":"H9+J9","v":9224},null,"x",null,"x",null,null,"x",null,null,"x","x",null,null,null,null,null,"x","x","x",null,"x","x","x","x","x",null,"Kevin Irving (FHWA),  James Burgess  (MoDOT PM)"]
[null,"KC","4P2292","Jackson","US 50","Interchange improvements at Rte. 291 South junction in Lee's Summit.  Project involves bridge A1483.",2017,2322,827,12962,{"$f":"SUM(H10:J10)","v":16111},null,null,null,"x",null,null,null,null,"x","x","x","x",null,null,null,null,"x","x","x","x","x","x","x","x","x",null,"Kevin Irving (FHWA),  Lee Ann Kell (MoDOT PM)"]
[null,"KC","4P3002","Cass","MO 291","Capacity improvements from Waters Road to Royal Street in Harrisonville.",2017,998,491,4118,5607,null,null,null,"x",null,null,"x",null,"x","x","x","x",null,null,null,null,"x","x","x",null,"x","x","x","x","x",null,"Kevin Irving (FHWA),  Lee Ann Kell (MoDOT PM)"]
[null,"KC","4U1108C","Platte","MO 45","Corridor improvements, including roadway widening and bicycle/pedestrian accommodations, from Rt. K to I-435 in Platte County",2017,2210,1145,9602,12957,null,null,null,"x",null,null,null,null,"x","x","x","x",null,null,null,null,"x","x","x","x","x","x","x","x","x",null,"Kevin Irving (FHWA),  James Burgess  (MoDOT PM)"]
[null,"CD","5I3001","Boone","IS 70","Pavement improvements on the eastbound and westbound lanes from the Missouri River to near the St. Charles Road interchange in Columbia. ",2017,522,0,6432,6954,null,"x",null,null,null,null,"x",null,null,"x","x",null,null,null,null,null,null,"x","x",null,null,"x","x","x","x",null,"Mike McGee (FHWA)"]
[null,"CD","5L1700","Various","Various","Pavement and bridge improvements on various primary routes in the Central District.  ",2017,570,0,7725,8295,null,"x",null,null,null,null,null,null,null,null,null,null,null,null,null,null,null,null,null,null,null,null,null,null,null,null,"Mike McGee (FHWA)"]
[null,"SL","6I2418","St. Charles",70,"Scoping for interchange improvements at Rte. K. Future Cost Share project with O'Fallon.  Maximum Cost Share funds $3,878,533. Project involves bridge L0710.",2017,92,"NA",null,{"$f":"SUM(H15:J15)","v":92},null,"x","x","x",null,"x","x","x","x","x","x","x",null,null,null,null,"x","x","x","x","x","x","x","x","x",null,"Felix Gonzlez (FHWA), Tim Schroeder (MoDOT PM)"]
[null,"SL","6I3113","St. Louis","IS 270","Pavement improvements from I-44 to I-55.",2017,1041,0,7917,8958,null,"x",null,null,null,null,"x",null,null,"x","x","x",null,null,null,null,null,"x",null,null,"x",null,"x","x","x",null,"Felix Gonzalez (FHWA) Tom Montes (PM)"]
[null,"SL","6I3114","St. Louis","IS 44","Pavement improvements from Rte. 141 to Rte. 109.",2017,476,0,3671,4147,null,"x",null,null,null,null,"x",null,null,"x","x","x",null,null,null,null,null,"x",null,null,"x",null,"x","x","x",null,"Felix Gonzalez (FHWA)  Tom Montes (PM)"]
[null,"SW","7I3049","Lawrence","IS 44","Eastbound bridge improvement over Spring River. Project involves bridge A0977. ",2017,363,0,2678,3041,null,"x",null,null,null,null,null,null,null,"x",null,null,null,null,null,null,null,null,null,null,"x",null,null,null,null,null,"Mike McGee (FHWA)"]
[null,"SW","8P3036","Greene","US 65","Interchange improvements at Rte. YY (Division Street). $1,519,395 Cost Share, $1,823,292\nSpringfield STP-Urban, $455,823 Springfield.",2017,336,1190,2967,4493,null,null,null,"x",null,"x","x",null,"x","x","x","x",null,null,null,null,"x","x","x",null,null,"x","x","x","x",null,"Mike McGee (FHWA), Jen Thomas (MoDOT PM)"]
[null,"SE","9I3111","Scott","IS 55","Pavement improvements from I-57 to Arkansas State line. ",2017,1125,0,13140,14265,null,null,null,"x",null,null,"x",null,null,"x","x",null,null,null,null,null,null,"x","x",null,null,"x","x","x","x",null,"Mike McGee (FHWA)"]
[null,"SE","0I0956","Scott","IS 55","Interchange improvements south of Scott City. ",2017,2081,1913,11764,15758,"AJR",null,"ü","x",null,"x","x","x","x","x","x","x",null,null,null,null,"x","x","x","x",null,"x","x","x","x",null,"Mike McGee (FHWA), Eric Krapf (MoDOT PM)"]
[]
[null,null,null,null,null,null,null,null,null,null,null,null,null,null,null,null,null,null,null,null,null,null,null,null,"LEGEND"]
[null,null,null,null,null,null,null,null,null,null,null,{"$f":"K24*0.8*1000","v":0}]
[null,null,null,null,null,null,null,null,null,null,null,null,null,"x",null,"Action requiring FHWA involvement",null,null,null,null,null,null,null,null,null,null,"*",null,"Submittal requires FHWA approval"]
[]
[null,null,null,null,null,null,null,null,null,null,null,null,null,"ü",null," Action completed",null,null,null,null,null,null,null,null,null,null,"**",null,"Submittal for FHWA review/comment"]
[]
[null,null,null,null,null,null,null,null,null,null,null,null,null,"-",null," No FHWA approvals/actions were required",null,null,null,null,null,null,null,null,null,null,"***",null,"Submittal requires FHWA concurrence"]
[]
[null,null,null,null,null,null,null,null,null,null,null,null,null,"ü",null,"Additional FHWA approval action taken"]

{"sheet":"2018","index":3,"n_rows":27,"n_cols":38,"rows_kept":27,"cut":false,"hidden":false,"merged":[[0,1,0,37],[1,1,1,4],[1,6,1,7],[2,1,2,11],[2,24,2,26],[2,27,2,36],[2,12,2,23],[1,12,1,37]]}
[null,"Stewardship and Oversight Plan"]
[null,null,null,null,null,"2018 Total Selected Construction Cost:                 2018 STIP Construction Award Amount:","   $79,971,000 $325,000.,000",null,null,null,null,null,"Last Updated : 8/14/2015 1:27:48 PM"]
[null," 2018 STIP Project",null,null,null,null,null,null,null,null,null,null,"Design",null,null,null,null,null,null,null,null,null,null,null,"Design Build",null,null,"Construction"]
[null,"District","Job No.","County","Route","Description","State FY","Engineering ($1,000)","ROW ($1,000)","Construction ($1,000)","Total ($1,000)","Notes","Conceptual Report   **","Access Justification Requests   *","Design Exceptions   *","Value Engineering (VE)   **","Experimental Features   *","Preliminary Plans (Identify Percent Complete with FHWA Contact)   *","Bridge Type, Size, and Location (TS&L)   **","Final Plans, Specifications, and Estimate (PS&E) approval   *","Transportation Management Plan (Includes TTCP) *","Construction Authorization   *","Addenda   *","Financial plan (for approval if > $500M, for review/comment if > $100M)","Request for Qualifications (RFQ)   **","Request for Proposals (RFP)   *","Alternative Applicable Standards (AAS)   ***","Alternative Technical Concepts (ATCs) When applicable   *","Bid analysis and concurrence in award   ***","Initial Inspection","Intermediate Inspections","In-Depth Inspection","Final Inspection","Construction Change Orders   *","Value Engineering change proposals   *","Final Acceptance",null,"Project Contacts"]
[null,"NW","1I3020","Holt","IS 29","Replace bridge deck and expansion joints over the Nodaway River in the southbound lane, 0.8 mile south of Rte. 59 near Oregon. Project involves bridge A1297.",2018,397,0,3819,{"$f":"SUM(H5:J5)","v":4216},null,"x",null,null,null,null,"x","x",null,"x","x",null,null,null,null,null,null,"x","x",null,"x",null,null,null,null,null,"Kevin Irving (FHWA) Wes Moore (MoDOT PM)"]
[null,"NE","2P3059","Various","Various","Bridge improvements at various primary locations in the Northeast District. ",2018,573,0,3607,{"$f":"SUM(H6:J6)","v":4180},null,"x",null,"x",null,null,"x",null,"x","x","x","x",null,null,null,null,null,"x","x",null,"x",null,"x","x",null,null,"Felicx Gonzalez (FHWA) Jerad Noland (PM)"]
[null,"KC","3I3009","Saline","IS 70","Bridge improvements at Rte. 65. Project involves bridge A0203. ",2018,339,0,2553,{"$f":"SUM(H7:J7)","v":2892},null,null,null,"x",null,null,"x","x",null,"x","x",null,null,null,null,null,null,"x","x",null,"x",null,null,null,null,null,"Kevin Irving (FHWA) James Shipley (MoDOT PM)"]
[null,"KC","4I3115","Jackson","IS 435","Pavement improvements from the bridge over Raytown Road to Rte. W, Bannister Road.",2018,638,0,5310,5948,null,null,null,"x",null,null,"x",null,null,"x","x",null,null,null,null,null,null,"x","x",null,"x","x","x","x","x",null,"Kevin Irving (FHWA) Mark Fisher (MoDOT PM)"]
[null,"KC","4P2256","Jackson","IS-49","Interchange and bridge improvements at 155th Street in Grandview, Belton and Kansas City. Project involves bridge A0479.",2018,1080,84,7846,9010,"Proposing DDI and Roundabout - Currently Diamond",null,"ü","ü",null,null,"ü","ü","x","x","x",null,null,null,null,null,null,null,"x",null,"x","x","x","x","x",null,"Kevin Irving (FHWA), Allan Ludiker (MoDOT PM)"]
[null,"KC","4P2360","Cass","IS 49","Bridge improvements over the South Grand River and Tennessee Creek. Project involves bridges A2069, A2641 and A2642.",2018,1190,0,8132,9322,null,"x",null,"x",null,"x","x","x","x","x","x","x",null,null,null,null,"x","x","x",null,"x","x","x","x","x",null,"Kevin Irving (FHWA), Allan Ludiker (MoDOT PM)"]
[null,"SL","6I2332","St. Louis City","IS 44","Bridge improvements at the 3rd Street Viaduct. Project involves bridges L0361, A3162, A3351, A3352 and A3353. ",2018,2419,0,21626,24045,null,"x",null,"x","x",null,"x","x","x","x","x","x",null,null,null,null,null,"x",null,"x",null,"x","x","x","x",null,"Felicx Gonzalez (FHWA), Jeff Bohler (PM)"]
[null,"SL","6I3109","St. Charles","IS 70","Pavement improvements from Rte. 94 in St. Charles County to east of I-270 (McKelvey Road) in St. Louis County.",2018,262,0,4046,4308,null,"x",null,"x",null,null,"x",null,null,"x","x",null,null,null,null,null,null,"x",null,null,"x",null,"x","x",null,null,"Felix Gonzlez (FHWA), Tim Schroeder (MoDOT PM)"]
[null,"SL","6I3110","Jefferson","IS 55","Pavement improvements from Rte. Z to the St. Genevieve County Line.",2018,876,0,7352,8228,null,"x",null,"x",null,null,"x",null,null,"x","x",null,null,null,null,null,null,"x",null,null,"x",null,"x","x",null,null,"Felicx Gonzalez (FHWA),  Shirley Norris (PM)"]
[null,"SW","7P3000","Jasper","IS 49","Bridge improvements over the BNSF Railroad and Spring River. Project involves bridges A3556 and A3557.",2018,718,0,3787,4505,null,"x",null,"x",null,null,"x",null,null,"x","x",null,null,null,null,null,null,"x",null,null,"x","x","x","x","x",null,"Mike McGee (FHWA)"]
[null,"SW","7T0043","Lawrence","MO 39","Rail crossing improvements on Carnation Drive at BNSF Railway and on Rte. K (Elliot Street) at the BNSF and MNA Railways in Aurora. Close at-grade crossings on Morgan Avenue and McNatt Avenue. $2,700,000 STP Rail Safety, $300,000 Grade Crossing Safety Account.",2018,343,306,4616,5265,null,"x",null,null,null,null,"x",null,"x",null,"x",null,null,null,null,null,null,"x","x",null,null,"x","x","x","x",null,"Mike McGee (FHWA)"]
[null,"SW","8P2293","Greene","US 65","Replace southbound bridge over I-44 in Springfield. $166,134.42 MO108 SAFETEA-LU\nearmark. Project involves bridge A2071.",2018,753,0,3445,4198,null,null,null,"x",null,"x","x","x",null,"x","x",null,null,null,null,null,null,"x","x",null,null,"x","x","x","x",null,"Mike McGee (FHWA), Don Saiko (MoDOT PM)"]
[null,"SE","9P3004","Wright","US 60","Pavement improvements from the Webster County line to Whetstone Creek",2018,550,0,3832,{"$f":"SUM(H17:J17)","v":4382},null,"x",null,"x",null,"x","x",null,null,null,"x",null,null,null,null,null,null,null,null,null,null,"x","x","x","x",null,"Mike McGee (FHWA), Eric Krapf (MoDOT PM)"]
[]
[null,null,null,null,null,null,null,null,null,{"$f":"SUM(J5:J18)","v":79971},null,{"$f":"K19*0.8*1000","v":0},null,null,null,null,null,null,null,null,null,null,null,null,"LEGEND"]
[]
[null,null,null,null,null,null,null,null,null,null,null,null,null,"x",null,"Action requiring FHWA involvement",null,null,null,null,null,null,null,null,null,null,"*",null,"Submittal requires FHWA approval"]
[]
[null,null,null,null,null,null,null,null,null,null,null,null,null,"ü",null," Action completed",null,null,null,null,null,null,null,null,null,null,"**",null,"Submittal for FHWA review/comment"]
[]
[null,null,null,null,null,null,null,null,null,null,null,null,null,"-",null," No FHWA approvals/actions were required",null,null,null,null,null,null,null,null,null,null,"***",null,"Submittal requires FHWA concurrence"]
[]
[null,null,null,null,null,null,null,null,null,null,null,null,null,"ü",null,"Additional FHWA approval action taken"]

{"sheet":"2019","index":4,"n_rows":21,"n_cols":38,"rows_kept":21,"cut":false,"hidden":false,"merged":[[0,1,0,37],[2,27,2,36],[1,12,1,37],[11,9,12,9],[11,10,12,10],[1,1,1,4],[1,6,1,7],[2,1,2,11],[2,12,2,23],[2,24,2,26]]}
[null,"Stewardship and Oversight Plan"]
[null,null,null,null,null,"2019 Total Selected Construction Cost:                 2019 STIP Construction Award Amount:","  $25,833,000 $325,000,000",null,null,null,null,null,"Last Updated : 8/14/2015 1:27:48 PM"]
[null," 2019 STIP Project",null,null,null,null,null,null,null,null,null,null,"Design",null,null,null,null,null,null,null,null,null,null,null,"Design Build",null,null,"Construction"]
[null,"District","Job No.","County","Route","Description","State FY","Engineering ($1,000)","ROW ($1,000)","Construction ($1,000)","Total ($1,000)","Notes","Conceptual Report   **","Access Justification Requests   *","Design Exceptions   *","Value Engineering (VE)   **","Experimental Features   *","Preliminary Plans (Identify Percent Complete with FHWA Contact)   *","Bridge Type, Size, and Location (TS&L)   **","Final Plans, Specifications, and Estimate (PS&E) approval   *","Transportation Management Plan (Includes TTCP) *","Construction Authorization   *","Addenda   *","Financial plan (for approval if > $500M, for review/comment if > $100M)","Request for Qualifications (RFQ)   **","Request for Proposals (RFP)   *","Alternative Applicable Standards (AAS)   ***","Alternative Technical Concepts (ATCs) When applicable   *","Bid analysis and concurrence in award   ***","Initial Inspection","Intermediate Inspections","In-Depth Inspection","Final Inspection","Construction Change Orders   *","Value Engineering change proposals   *","Final Acceptance",null,"Projkect Contacts"]
[null,"NW","1I3093","Holt","IS-29","Resurface driving lanes and shoulders from Rte. W to Rte. 118 at Mound City.",2019,869,0,7769,{"$f":"SUM(H5:J5)","v":8638},null,"x",null,"x",null,null,"x",null,null,"x","x",null,null,null,null,null,null,"x","x",null,"x","x","x","x","x",null,"Kevin Irving (FHWA), Wes Moore (MoDOT PM)"]
[null,"NW","1I3099","Holt","IS 29","Bridge improvements in the northbound and southbound lanes over Kimsey Creek and Rte. E near Mound City. Project involves bridges A1770 and A1771",2019,415,0,3856,4271,null,"x",null,"x",null,null,"x","x","x","x","x","x",null,null,null,null,null,"x","x",null,"x","x","x","x","x",null,"Kevin Irving (FHWA), Wes Moore (MoDOT PM)"]
[null,"NE","2P3095","Audrain","MO 22","Pavement improvements from 0.1 mile west of Rte. E in Audrain County near Mexico to Rte. F in Boone County.",2019,120,0,1716,1836,null,"x",null,"x",null,null,"x",null,null,"x","x",null,null,null,null,null,null,"x",null,null,"x",null,"x","x","x",null,"Felix Gonzlez (FHWA), Jerad Noland (PM)"]
[null,"CD","5P3015","Cole","Dix Rd","Bridge improvements at Dix Road over Rte. 50 in Jefferson City. Project involves bridge A1187.",2019,100,0,1004,1104,null,"x",null,"x",null,null,"x",null,"x","x",null,"x",null,null,null,null,null,null,"x",null,null,"x","x","x","x",null,"Mike McGee (FHWA)"]
[null,"SW","7P2212D","Greene","US 65","Pavement improvements on various sections of the southbound lanes from Pomme de Terre River to Rte. KK. ",2019,193,0,2764,2957,null,"x",null,"x",null,null,"x",null,null,"x","x",null,null,null,null,null,null,"x",null,null,null,"x","x","x","x",null,"Mike McGee (FHWA)"]
[null,"SW","7P3076","Taney","US 65","Pavement improvements on various sections from 0.9 mile north of Rte. 465 to Arkansas State line. ",2019,345,0,5530,5875,null,"x",null,"x",null,null,"x",null,null,"x","x",null,null,null,null,null,null,"x",null,null,"x","x","x","x","x",null,"Mike McGee (FHWA)"]
[null,"SE","9P2243","Texas","US 63","Pavement improvements from Rte. 32 to Rte. E.\n",2019,235,0,3194,3429,null,"x",null,"x",null,null,"x",null,null,"x","x",null,null,null,null,null,null,"x",null,null,null,"x","x","x","x",null,"Mike McGee (FHWA)"]
[]
[null,null,null,null,null,null,null,null,null,null,null,{"$f":"K12*0.8*1000","v":0},null,null,null,null,null,null,null,null,null,null,null,null,"LEGEND"]
[]
[null,null,null,null,null,null,null,null,null,null,null,null,null,"x",null,"Action requiring FHWA involvement",null,null,null,null,null,null,null,null,null,null,"*",null,"Submittal requires FHWA approval"]
[]
[null,null,null,null,null,null,null,null,null,null,null,null,null,"ü",null," Action completed",null,null,null,null,null,null,null,null,null,null,"**",null,"Submittal for FHWA review/comment"]
[]
[null,null,null,null,null,null,null,null,null,null,null,null,null,"-",null," No FHWA approvals/actions were required",null,null,null,null,null,null,null,null,null,null,"***",null,"Submittal requires FHWA concurrence"]
[]
[null,null,null,null,null,null,null,null,null,null,null,null,null,"ü",null,"Additional FHWA approval action taken"]

{"sheet":"2020","index":5,"n_rows":20,"n_cols":38,"rows_kept":20,"cut":false,"hidden":false,"merged":[[10,9,11,9],[10,10,11,10],[0,1,0,37],[1,1,1,4],[1,6,1,7],[1,12,1,37],[2,1,2,11],[2,12,2,23],[2,24,2,26],[2,27,2,36]]}
[null,"Stewardship and Oversight Plan"]
[null,null,null,null,null,"2020 Total Selected Construction Cost:                 2020 STIP Construction Award Amount:","  $43,216,000 $325,000,000",null,null,null,null,null,"Last Updated : 6/16/2015 12:02:48 PM"]
[null," 2020 STIP Project",null,null,null,null,null,null,null,null,null,null,"Design",null,null,null,null,null,null,null,null,null,null,null,"Design Build",null,null,"Construction"]
[null,"District","Job No.","County","Route","Description","State FY","Engineering ($1,000)","ROW ($1,000)","Construction ($1,000)","Total ($1,000)","Notes","Conceptual Report   **","Access Justification Requests   *","Design Exceptions   *","Value Engineering (VE)   **","Experimental Features   *","Preliminary Plans (Identify Percent Complete with FHWA Contact)   *","Bridge Type, Size, and Location (TS&L)   **","Final Plans, Specifications, and Estimate (PS&E) approval   *","Transportation Management Plan (Includes TTCP) *","Construction Authorization   *","Addenda   *","Financial plan (for approval if > $500M, for review/comment if > $100M)","Request for Qualifications (RFQ)   **","Request for Proposals (RFP)   *","Alternative Applicable Standards (AAS)   ***","Alternative Technical Concepts (ATCs) When applicable   *","Bid analysis and concurrence in award   ***","Initial Inspection","Intermediate Inspections","In-Depth Inspection","Final Inspection","Construction Change Orders   *","Value Engineering change proposals   *","Final Acceptance",null,"Projkect Contacts"]
[null,"NE","3I2195","Montgomery","IS-70","Replace bridge over Loutre River 2.2 miles west of Rte. 161 near Danville. Project involves bridge A0971.",2020,467,0,4750,{"$f":"SUM(H5:J5)","v":5217},"Recommended full Federal Oversight - F. Gonzalez","x",null,"x",null,"x","x","x","x","x","x","x",null,null,null,null,"x","x","x",null,"x",null,"x","x","x",null,"Felix Gonzlez (FHWA),  Jerad Noland (MoDOT PM)"]
[null,"KC","4P2332C","Jackson","US 71","Pavement improvements from I-670 to Swope Parkway in Kansas City.",2020,159,0,1837,{"$f":"SUM(H6:J6)","v":1996},null,"x",null,"x",null,"x","x",null,null,"x","x",null,null,null,null,null,null,null,null,null,"x",null,null,null,null,null,"Kevin Irving (FHWA)"]
[null,"SL","6I1896","St Louis","IS-270","Bridge replacement at the Rte. N interchange. Project involves bridge L0745. Potential\nDesign/Build project.",2020,1293,0,8194,9487,null,"x","x","x",null,"x","x","x","x","x","x","x",null,"x","x","x",null,"x","x","x","x","x","x","x","x",null,"Felix Gonzlez (FHWA), Lee Hilner (MoDOT PM)"]
[null,"SL","6I2233","St Louis","IS-270","Bridge replacement at the Rte. AC interchange. Project involves bridge A0223. Potential Design/Build project.",2020,930,0,7684,8614,null,"x","x","x",null,"x","x","x","x","x","x","x",null,"x","x","x",null,"x","x","x","x","x","x","x","x",null,"Felix Gonzlez (FHWA), Lee Hilner (MoDOT PM)"]
[null,"SW","7P0601","McDonald",71,"Roadway improvements from Pineville to the Arkansas State line (Bella Vista).\nConstruction funding from 7P2157. $12,017,701 SAFETEA-LU earmark DEMO ID\nMO118. Amendment 3 new major project.",2020,13420,4610,13777,31807,null,"x",null,"x","x","x","x","x","x","x","x","x",null,null,null,null,"x","x","x","x",null,"x","x","x","x",null,"Mike McGee (FHWA),  Kristi Bachman (MoDOT PM)"]
[null,"SW","7P0797","Bates","US 71","Various improvements from Cass County to I-44 as part of the upgrade to I-49. Amendment 3 new major project.",2020,1008,0,6974,7982,null,"x",null,"x",null,null,"x",null,null,"x","x",null,null,null,null,null,null,"x","x",null,null,"x","x","x","x",null,"Mike McGee (FHWA),  Kristi Bachman (MoDOT PM)"]
[]
[null,null,null,null,null,null,null,null,null,null,null,{"$f":"K11*0.8*1000","v":0},null,null,null,null,null,null,null,null,null,null,null,null,"LEGEND"]
[]
[null,null,null,null,null,null,null,null,null,null,null,null,null,"x",null,"Action requiring FHWA involvement",null,null,null,null,null,null,null,null,null,null,"*",null,"Submittal requires FHWA approval"]
[]
[null,null,null,null,null,null,null,null,null,null,null,null,null,"ü",null," Action completed",null,null,null,null,null,null,null,null,null,null,"**",null,"Submittal for FHWA review/comment"]
[]
[null,null,null,null,null,null,null,null,null,null,null,null,null,"-",null," No FHWA approvals/actions were required",null,null,null,null,null,null,null,null,null,null,"***",null,"Submittal requires FHWA concurrence"]
[]
[null,null,null,null,null,null,null,null,null,null,null,null,null,"ü",null,"Additional FHWA approval action taken"]